bitfinex-derivatives/quotes_SOLF0:USTF0_20250817
["timestamp","ask_amount","ask_price","bid_price","bid_amount"]
[1755454182042,3.01,193.06,193.05,2.87]
[1755454182645,3.01,193.06,193.04,5.1771]
[1755454182848,3.01,193.06,193.01,2.87]
[1755454183046,3.01,193.06,193.0,49.49649625]
[1755454183246,3.01,193.06,193.02,2.87]
[1755454183451,3.01,193.06,193.01,5.1779]
[1755454183653,3.01,193.06,193.03,2.87]
[1755454186150,3.01,193.06,193.02,5.1778]
[1755454186351,3.01,193.06,193.04,2.87]
[1755454186752,3.01,193.06,193.02,8.0478]
[1755454187044,3.01,193.06,193.04,2.87]
[1755454187747,2.94,193.08,193.04,2.87]
[1755454187945,2.94,193.07,193.04,2.87]
[1755454188350,2.94,193.07,193.05,5.1769]
[1755454188648,2.94,193.07,193.06,2.88]
[1755454190148,2.62692194,193.14,193.04,5.1772]
[1755454190445,2.94,193.06,193.04,5.1772]
[1755454190857,2.94,193.06,193.05,2.88]
[1755454191354,2.62692194,193.14,193.05,2.88]
[1755454191547,2.94,193.07,193.05,2.88]
[1755454192756,2.94,193.13,193.05,2.88]
[1755454192954,3.75140764,193.12,193.05,2.88]
[1755454193253,2.94,193.1,193.06,2.88]
[1755454193952,2.94,193.1,193.03,5.1774]
[1755454194147,3.75148201,193.09,193.01,2.88]
[1755454194451,2.94,193.1,193.02,5.1776]
[1755454194657,2.94,193.08,193.04,2.88]
[1755454194847,2.94,193.08,193.0,49.49649625]
[1755454195048,2.94,193.08,193.05,2.88]
[1755454200656,2.94,193.08,193.0,46.86957431]
[1755454200852,3.71121975,193.07,193.0,2.88]
[1755454201061,6.65121975,193.06,192.97,2.88]
[1755454201358,2.94,193.04,192.97,2.88]
[1755454203160,3.71100786,193.03,192.95,2.88]
[1755454203458,2.62692194,193.05,192.95,2.88]
[1755454203459,6.6511985,193.02,192.95,2.88]
[1755454203661,2.94,193.01,192.95,2.88]
[1755454204465,2.94,193.01,192.92,7.80722194]
[1755454204656,2.94,193.01,192.93,2.88]
[1755454204854,2.94,193.01,192.93,8.06]
[1755454205160,2.94,193.01,192.94,2.88]
[1755454205661,2.94,193.01,192.94,5.1798]
[1755454205960,2.94,193.01,192.95,2.88]
[1755454206356,2.94,193.01,192.93,2.88]
[1755454207361,2.94,193.01,192.94,5.1797]
[1755454207661,2.94,193.01,192.95,2.88]
[1755454216376,3.71562598,193.0,192.95,2.88]
[1755454216670,2.94,192.99,192.95,2.88]
[1755454217969,2.94,192.99,192.95,2.83]
[1755454218672,2.94,192.99,192.93,5.1801]
[1755454218873,2.94,192.99,192.93,2.83]
[1755454219874,2.94,192.99,192.93,8.0102]
[1755454220063,79.05764289,193.05,192.94,2.83]
[1755454220265,2.82,192.98,192.94,2.83]
[1755454221474,2.82,193.04,192.94,2.83]
[1755454221767,2.82,193.02,192.94,2.83]
[1755454221964,2.82,193.0,192.94,2.83]
[1755454224175,2.82,193.0,192.94,5.1799]
[1755454224476,2.82,193.04,192.92,2.83]
[1755454224665,3.71466583,193.03,192.92,2.83]
[1755454224862,2.82,193.01,192.94,2.83]
[1755454232579,76.43072095,193.05,192.95,2.83]
[1755454232771,2.82,193.03,192.98,2.83]
[1755454233171,2.82,193.04,193.0,2.83]
[1755454233579,2.82,193.04,192.98,2.83]
[1755454234779,3.71540055,193.03,192.93,2.62692194]
[1755454235084,2.82,193.01,192.97,2.83]
[1755454235381,2.82,193.01,192.95,5.1794]
[1755454235573,2.82,193.01,192.96,2.83]
[1755454237475,2.82,193.04,192.97,2.83]
[1755454237681,2.82,193.02,192.97,2.83]
[1755454237882,2.82,193.01,192.97,2.83]
[1755454240579,2.82,193.01,192.98,2.83]
[1755454241183,2.82,193.01,192.97,2.83]
[1755454242284,3.72434256,193.0,192.97,2.83]
[1755454242490,2.82,193.01,192.97,2.83]
[1755454242786,3.72378731,193.0,192.94,2.83]
[1755454242980,3.7231939,192.99,192.95,2.83]
[1755454243178,2.82,192.97,192.95,2.83]
[1755454247288,2.82,192.97,192.93,2.83]
[1755454247484,2.82,192.97,192.91,5.1806]
[1755454247687,2.82,192.97,192.95,2.9]
[1755454248587,2.82,192.97,192.93,2.9]
[1755454260492,8.18110919,192.96,192.91,2.9]
[1755454260698,8.18110919,192.95,192.91,2.9]
[1755454260893,8.18110919,192.94,192.91,2.9]
[1755454261091,2.9,192.92,192.91,2.9]
[1755454262500,2.62692194,192.98,192.88,2.9]
[1755454262692,2.9,192.96,192.88,2.9]
[1755454262892,2.9,192.94,192.86,2.9]
[1755454263101,2.9,192.92,192.86,2.9]
[1755454264199,2.9,192.92,192.86,8.082]
[1755454264396,2.9,192.92,192.87,2.9]
[1755454266398,2.9,192.92,192.87,5.1817]
[1755454266599,2.9,192.92,192.88,2.9]
[1755454267499,2.9,192.92,192.89,2.9]
[1755454268196,2.9,192.92,192.9,2.9]
[1755454270997,2.9,193.01,192.91,2.62692194]
[1755454271201,2.9,192.99,192.92,2.9]
[1755454271410,2.9,192.97,192.93,2.9]
[1755454271703,82.20255038,193.05,192.95,2.9]
[1755454271704,2.9,193.04,192.95,2.9]
[1755454271898,2.9,193.02,192.95,5.1796]
[1755454272114,4.54390869,193.01,192.96,2.9]
[1755454272302,2.9,193.03,192.96,2.9]
[1755454272507,2.9,193.01,192.96,8.0792]
[1755454272701,2.9,193.01,192.97,2.9]
[1755454272904,76.43072095,193.05,192.97,2.9]
[1755454273109,2.9,193.03,192.97,2.9]
[1755454273405,2.9,193.0,192.97,2.9]
[1755454274310,76.43072095,193.05,192.98,2.9]
[1755454274614,2.9,193.01,192.98,2.9]
[1755454274815,2.9,193.0,192.98,2.9]
[1755454275112,2.9,193.04,192.99,2.9]
[1755454275315,2.9,193.02,193.0,2.9]
[1755454276113,2.9,193.04,193.0,2.9]
[1755454276309,2.9,193.02,193.0,2.9]
[1755454277015,2.9,193.02,192.97,2.9]
[1755454286018,76.43072095,193.05,192.96,5.1793]
[1755454286223,2.98,193.0,192.98,2.85]
[1755454286624,2.98,192.99,192.98,2.85]
[1755454294327,2.98,192.99,192.98,4.53301021]
[1755454297225,2.98,192.99,192.98,1.68301021]
[1755454297425,2.98,192.99,192.98,4.53301021]
[1755454302032,76.43072095,193.05,192.99,2.85]
[1755454302235,2.98,193.0,192.99,2.85]
[1755454303332,2.98,193.0,192.99,4.53301021]
[1755454304940,2.98,193.04,193.0,2.85]
[1755454305133,2.98,193.07,193.04,2.85]
[1755454305340,475.88301021,193.14,193.07,2.85]
[1755454305534,8.17529925,193.13,193.07,2.85]
[1755454305735,8.17529925,193.12,193.07,2.85]
[1755454305935,2.98,193.1,193.07,2.85]
[1755454306143,2.98,193.1,193.06,6.85971021]
[1755454306347,2.98,193.1,193.08,2.85]
[1755454307438,2.98,193.1,193.06,2.85]
[1755454307638,2.98,193.1,193.07,2.89]
[1755454309546,2.98,193.1,193.08,2.89]
[1755454310444,2.98,193.1,193.07,2.62724077]
[1755454310642,2.98,193.1,193.08,2.89]
[1755454311238,2.98,193.1,193.08,5.1761]
[1755454311433,2.98,193.1,193.09,2.89]
[1755454316650,126.08,193.14,193.09,2.89]
[1755454316651,2.91,193.12,193.09,2.89]
[1755454318156,2.91,193.11,193.09,2.89]
[1755454318358,2.91,193.13,193.1,2.89]
[1755454318850,2.91,193.12,193.1,2.89]
[1755454320866,2.91,193.12,193.07,5.1764]
[1755454321071,2.91,193.12,193.08,2.89]
[1755454322565,2.91,193.12,193.09,2.89]
[1755454323968,2.91,193.12,193.1,2.89]
[1755454329970,2.91,193.12,193.08,5.1761]
[1755454330271,2.91,193.12,193.11,2.89]
[1755454332769,2.91,193.12,193.1,2.89]
[1755454338878,2.91,193.12,193.11,2.82]
[1755454343676,2.91,193.12,193.1,2.82]
[1755454346485,7.55122472,193.11,193.1,2.82]
[1755454347485,3.01,193.11,193.1,2.82]
[1755454347786,7.55154784,193.11,193.1,2.82]
[1755454348381,11.21748992,193.11,193.1,2.82]
[1755454350689,11.22860743,193.11,193.1,2.82]
[1755454351585,11.22860743,193.11,193.1,7.9957]
[1755454353092,11.22860743,193.11,193.1,2.82]
[1755454353592,11.23074986,193.11,193.1,2.82]
[1755454356696,6.67594208,193.11,193.1,2.82]
[1755454356886,11.24079862,193.11,193.1,2.82]
[1755454357087,6.67594208,193.11,193.1,2.82]
[1755454357286,11.24118313,193.11,193.1,2.82]
[1755454357496,11.24118313,193.11,193.1,7.9957]
[1755454359996,11.24210301,193.11,193.1,7.9957]
[1755454360296,6.67594208,193.11,193.1,7.9957]
[1755454363098,10.92138886,193.11,193.1,7.9957]
[1755454366003,6.67594208,193.11,193.1,7.9957]
[1755454366297,10.92048203,193.11,193.1,7.9957]
[1755454366901,10.92048203,193.11,193.1,2.82]
[1755454368198,2.83,193.1,193.01,8.68897457]
[1755454368503,2.83,193.08,193.03,1.68121775]
[1755454368698,2.83,193.06,193.04,3.05]
[1755454368902,2.83,193.06,193.04,8.2272]
[1755454369095,2.83,193.06,193.04,3.05]
[1755454369295,7.47048392,193.05,193.04,3.05]
[1755454369901,7.47048392,193.05,193.04,8.2272]
[1755454371405,2.83,193.04,193.02,5.1778]
[1755454371605,2.83,193.12,193.03,1.68121775]
[1755454371805,8.30889299,193.11,193.05,1.68121775]
[1755454372104,2.83,193.09,193.07,3.05]
[1755454372405,2.83,193.07,193.05,1.68121775]
[1755454372602,7.46805363,193.06,193.05,3.05]
[1755454375209,2.83,193.06,193.05,3.05]
[1755454375709,7.4660747,193.06,193.05,8.227]
[1755454376004,7.46516719,193.06,193.05,8.227]
[1755454380402,2.83,193.06,193.05,8.227]
[1755454383511,11.12121355,193.06,192.97,3.05]
[1755454383716,2.83,193.04,192.99,1.68121775]
[1755454383907,2.83,193.04,193.0,3.05]
[1755454384618,2.83,193.04,193.01,5.1779]
[1755454384819,2.83,193.04,193.02,3.05]
[1755454385517,2.83,193.09,193.03,4.73121775]
[1755454385717,7.46061841,193.08,193.07,1.68121775]
[1755454385925,7.46061841,193.08,193.07,4.73121775]
[1755454386715,7.46061841,193.08,193.07,3.05]
[1755454388523,7.46061841,193.08,193.07,8.2265]
[1755454388917,7.46061841,193.08,193.07,3.05]
[1755454389618,2.83,193.08,193.07,3.05]
[1755454390119,2.83,193.08,193.05,3.05]
[1755454391224,2.83,193.08,193.06,3.05]
[1755454397228,2.83,193.07,193.06,3.05]
[1755454408831,2.83,193.07,193.05,1.68121775]
[1755454409435,2.83,193.07,193.05,4.57121775]
[1755454412030,1.68121775,193.12,192.99,8.68897457]
[1755454412237,2.87,193.09,192.99,4.57121775]
[1755454412525,2.87,193.07,193.0,2.89]
[1755454412736,2.87,193.05,193.0,2.89]
[1755454412938,2.87,193.03,193.0,2.89]
[1755454413236,2.87,193.03,193.0,8.0681]
[1755454413431,2.87,193.03,193.01,2.89]
[1755454414638,2.87,193.03,193.01,4.57121775]
[1755454415240,2.87,193.03,193.01,1.68121775]
[1755454415448,2.87,193.03,193.02,2.89]
[1755454418734,4.57807024,193.03,193.0,2.89]
[1755454418940,2.87,193.01,192.98,1.68121775]
[1755454419135,2.87,193.01,192.98,4.57121775]
[1755454419338,2.87,193.01,192.98,1.68121775]
[1755454419530,2.87,193.01,192.99,2.89]
[1755454419934,2.87,193.05,193.0,1.68121775]
[1755454420139,2.87,193.03,193.02,1.68121775]
[1755454420739,2.87,193.03,193.02,4.57121775]
[1755454420942,2.87,193.1,193.03,2.89]
[1755454421243,2.87,193.08,193.05,2.89]
[1755454421446,8.24817741,193.07,193.05,2.89]
[1755454421648,11.11817741,193.06,193.05,2.89]
[1755454422543,0.9018114,193.14,193.05,2.89]
[1755454422849,2.87,193.12,193.05,2.89]
[1755454423043,2.87,193.1,193.06,2.89]
[1755454423346,2.87,193.08,193.06,2.89]
[1755454425236,2.87,193.08,193.04,2.89]
[1755454426751,2.87,193.08,193.05,2.89]
[1755454427046,2.87,193.08,193.03,5.1775]
[1755454427247,2.87,193.08,193.04,2.89]
[1755454431455,2.76,193.06,193.04,2.89]
[1755454432855,3.53004326,193.14,193.04,2.89]
[1755454433046,2.76,193.05,193.04,2.89]
[1755454437553,2.76,193.13,193.04,2.89]
[1755454437755,2.76,193.11,193.06,2.97]
[1755454437952,4.57742852,193.1,193.09,2.97]
[1755454438159,2.76,193.11,193.09,2.97]
[1755454438844,2.76,193.16,193.09,2.97]
[1755454439057,2.76,193.14,193.09,2.97]
[1755454439260,2.76,193.12,193.09,2.97]
[1755454439452,2.76,193.1,193.09,2.97]
[1755454442153,125.84,193.17,193.09,2.97]
[1755454442461,2.76,193.12,193.11,4.65084246]
[1755454457767,2.76,193.12,193.11,1.68084246]
[1755454458669,2.76,193.12,193.11,4.54084246]
[1755454471880,2.78,193.16,193.11,1.68084246]
[1755454472082,2.78,193.14,193.12,2.86]
[1755454472281,2.78,193.14,193.13,2.86]
[1755454472878,6.4515003,193.14,193.12,2.86]
[1755454473083,2.78,193.13,193.12,2.86]
[1755454473275,2.78,193.13,193.11,4.54084246]
[1755454480085,3.67717239,193.12,193.11,4.54084246]
[1755454480274,6.45717239,193.12,193.11,4.54084246]
[1755454489785,2.98,193.11,193.06,1.68084246]
[1755454489988,3.67717239,193.1,193.07,2.98]
[1755454490289,3.67717239,193.09,193.07,2.98]
[1755454490487,1.68084246,193.11,193.05,2.98]
[1755454490690,4.66084246,193.09,193.04,2.98]
[1755454490890,2.98,193.07,193.04,2.98]
[1755454491091,7.87419949,193.08,193.05,1.68084246]
[1755454491092,2.98,193.08,193.05,1.68084246]
[1755454491290,7.56649519,193.07,193.06,2.98]
[1755454493089,2.98,193.07,193.06,2.98]
[1755454498202,2.98,193.07,193.04,1.68084246]
[1755454498495,2.98,193.07,193.05,2.98]
[1755454500192,1.68084246,193.1,193.03,1.68084246]
[1755454500393,2.98,193.08,193.03,1.68084246]
[1755454500591,4.51050638,193.07,193.03,4.66084246]
[1755454500790,2.98,193.06,193.03,4.66084246]
[1755454501396,1.68084246,193.1,193.03,1.68084246]
[1755454501593,3.68520849,193.09,193.03,1.68084246]
[1755454501798,11.17633721,193.08,193.03,4.66084246]
[1755454502100,2.98,193.06,193.04,2.98]
[1755454503500,2.98,193.06,193.03,1.68084246]
[1755454503797,2.98,193.16,193.06,2.98]
[1755454504097,2.98,193.14,193.13,1.68084246]
[1755454504408,2.98,193.16,193.13,1.68084246]
[1755454504702,2.98,193.18,193.16,2.98]
[1755454505005,6.66379247,193.17,193.16,2.98]
[1755454505603,2.98,193.21,193.16,2.98]
[1755454505802,3.68276031,193.2,193.19,4.66084246]
[1755454506194,6.66276031,193.2,193.19,4.66084246]
[1755454506498,2.98,193.2,193.19,4.66084246]
[1755454507299,2.98,193.24,193.2,2.98]
[1755454507491,2.98,193.24,193.21,4.66084246]
[1755454508404,2.98,193.24,193.21,2.98]
[1755454509197,2.98,193.24,193.18,2.62351693]
[1755454509496,2.98,193.24,193.19,2.98]
[1755454510197,2.98,193.24,193.18,2.62351693]
[1755454511303,2.98,193.24,193.18,5.60351693]
[1755454512301,2.98,193.24,193.19,2.98]
[1755454513306,2.98,193.24,193.18,2.62351693]
[1755454513495,2.98,193.24,193.19,2.98]
[1755454514512,2.98,193.24,193.18,2.62351693]
[1755454514805,2.98,193.24,193.19,2.98]
[1755454515405,2.98,193.24,193.2,2.98]
[1755454518005,2.98,193.24,193.14,5.1744]
[1755454518203,2.98,193.24,193.15,5.43351693]
[1755454518406,2.98,193.24,193.16,2.81]
[1755454526610,2.62351693,193.22,193.11,2.81]
[1755454526800,2.85,193.2,193.11,2.81]
[1755454527507,2.85,193.2,193.14,2.62351693]
[1755454527710,2.85,193.2,193.15,2.81]
[1755454528412,2.85,193.2,193.16,1.67993234]
[1755454528712,2.85,193.2,193.17,2.81]
[1755454528912,2.85,193.2,193.16,1.67993234]
[1755454529113,2.85,193.2,193.18,2.81]
[1755454529713,2.85,193.2,193.16,1.67993234]
[1755454529913,2.85,193.2,193.14,2.81]
[1755454530213,2.85,193.18,193.15,2.81]
[1755454530913,2.85,193.2,193.15,4.48993234]
[1755454531115,2.85,193.2,193.16,2.81]
[1755454531602,2.85,193.19,193.16,2.81]
[1755454532509,125.64,193.21,193.16,2.81]
[1755454532708,125.64,193.21,193.16,5.43480312]
[1755454532903,2.85,193.21,193.17,2.81]
[1755454533714,2.85,193.24,193.15,2.81]
[1755454534815,2.85,193.24,193.15,5.1743]
[1755454535110,2.85,193.24,193.16,2.81]
[1755454537712,2.85,193.24,193.17,5.43480312]
[1755454537913,2.85,193.24,193.18,2.81]
[1755454540320,2.85,193.24,193.16,2.81]
[1755454545617,2.85,193.24,193.16,5.43480312]
[1755454545920,2.85,193.24,193.17,2.81]
[1755454548116,232.79921492,193.25,193.17,2.81]
[1755454548117,4.0043552,193.23,193.17,2.81]
[1755454548316,2.95,193.22,193.17,2.81]
[1755454551121,232.79921492,193.25,193.18,2.81]
[1755454551426,2.95,193.23,193.18,2.81]
[1755454551927,2.95,193.24,193.17,2.81]
[1755454552129,2.95,193.22,193.17,2.81]
[1755454556230,232.79921492,193.25,193.17,2.81]
[1755454556431,2.95,193.23,193.17,2.81]
[1755454559326,2.95,193.23,193.17,5.1738]
[1755454559534,2.95,193.23,193.18,2.81]
[1755454560332,2.95,193.23,193.19,1.67935392]
[1755454560532,2.95,193.23,193.2,2.81]
[1755454560831,2.95,193.23,193.19,2.81]
[1755454561027,2.95,193.23,193.16,1.67935392]
[1755454561227,2.95,193.23,193.17,2.81]
[1755454561730,5.30135919,193.22,193.17,2.81]
[1755454561928,2.95,193.21,193.13,2.81]
[1755454562136,4.00729547,193.21,193.14,1.67935392]
[1755454562428,2.95,193.2,193.15,2.81]
[1755454564339,2.95,193.2,193.14,5.1744]
[1755454564630,2.95,193.2,193.17,2.81]
[1755454565037,2.95,193.19,193.16,2.81]
[1755454565228,2.95,193.24,193.16,2.81]
[1755454565424,5.30173626,193.23,193.17,5.1738]
[1755454565637,2.95,193.22,193.18,2.81]
[1755454566222,2.95,193.22,193.18,7.9835]
[1755454566432,2.95,193.21,193.19,2.81]
[1755454567534,107.15921492,193.25,193.19,2.81]
[1755454567736,2.95,193.29,193.22,2.81]
[1755454567935,2.95,193.27,193.22,2.81]
[1755454568230,2.95,193.27,193.23,2.81]
[1755454569632,2.95,193.27,193.19,2.81]
[1755454569935,4.00474591,193.26,193.19,2.81]
[1755454570232,2.95,193.27,193.19,2.81]
[1755454570434,4.00450491,193.26,193.19,2.81]
[1755454570629,2.95,193.25,193.19,2.81]
[1755454572537,2.95,193.25,193.2,2.81]
[1755454572930,2.95,193.25,193.19,2.81]
[1755454574338,2.95,193.25,193.19,7.9831]
[1755454574631,2.95,193.25,193.2,2.81]
[1755454575035,2.95,193.25,193.19,5.1731]
[1755454575236,2.95,193.25,193.21,2.81]
[1755454578341,2.95,193.25,193.21,3.01]
[1755454578642,2.95,193.25,193.18,3.01]
[1755454579237,2.95,193.25,193.18,8.1835]
[1755454579436,2.95,193.25,193.19,3.01]
[1755454582045,2.95,193.25,193.19,8.1832]
[1755454582340,2.95,193.25,193.2,3.01]
[1755454585537,2.95,193.25,193.21,3.01]
[1755454587244,2.95,193.25,193.22,3.01]
[1755454587444,2.95,193.25,193.2,3.01]
[1755454587643,2.9,193.29,193.2,3.01]
[1755454587845,2.9,193.27,193.2,3.01]
[1755454590947,2.9,193.27,193.19,3.01]
[1755454591549,2.9,193.27,193.17,7.79866418]
[1755454591749,2.9,193.27,193.18,3.01]
[1755454592849,5.52496418,193.27,193.18,3.01]
[1755454593051,7.30163586,193.26,193.18,3.01]
[1755454593351,2.9,193.24,193.18,3.01]
[1755454593543,2.9,193.22,193.19,3.01]
[1755454595148,2.9,193.22,193.2,3.01]
[1755454599555,2.9,193.22,193.16,5.1739]
[1755454599755,2.9,193.26,193.18,3.01]
[1755454599958,2.9,193.24,193.18,3.01]
[1755454602067,4.414296,193.23,193.18,3.01]
[1755454602358,2.9,193.24,193.18,3.01]
[1755454603455,4.41340766,193.23,193.18,3.01]
[1755454603661,2.9,193.22,193.18,3.01]
[1755454612266,2.9,193.22,193.18,4.68945532]
[1755454612564,2.9,193.22,193.18,1.67945532]
[1755454612761,2.9,193.22,193.19,2.79]
[1755454612959,2.9,193.22,193.2,2.79]
[1755454613664,2.9,193.22,193.21,2.79]
[1755454613863,7.31912012,193.22,193.21,2.79]
[1755454614864,2.9,193.22,193.21,2.79]
[1755454615067,7.3192409,193.22,193.21,2.79]
[1755454615660,7.3192409,193.22,193.18,1.67945532]
[1755454615865,3.0,193.21,193.2,2.79]
[1755454622868,3.0,193.21,193.16,5.174]
[1755454623073,3.0,193.21,193.15,5.79703489]
[1755454623074,7.42202647,193.2,193.15,2.79]
[1755454623268,3.0,193.18,193.12,73.06137968]
[1755454623462,3.0,193.18,193.13,2.79]
[1755454623670,3.0,193.18,193.14,2.79]
[1755454624070,3.0,193.18,193.15,2.79]
[1755454626183,3.0,193.18,193.16,2.79]
[1755454629684,3.0,193.18,193.13,2.79]
[1755454631081,3.0,193.18,193.11,5.1754]
[1755454631282,3.0,193.18,193.12,2.79]
[1755454631683,3.0,193.16,193.1,2.79]
[1755454633089,3.0,193.16,193.11,2.79]
[1755454639497,3.0,193.16,193.12,0.03858091]
[1755454639893,3.0,193.16,193.13,2.91]
[1755454642291,5.77182943,193.25,193.12,1.71803623]
[1755454642499,114.73556446,193.29,193.17,2.91]
[1755454642500,3.01,193.23,193.17,2.91]
[1755454642705,3.01,193.21,193.16,4.58945532]
[1755454643498,3.01,193.21,193.16,1.67945532]
[1755454643694,3.01,193.21,193.17,2.91]
[1755454645600,3.01,193.21,193.16,1.67945532]
[1755454645601,3.01,193.21,193.18,2.91]
[1755454645992,3.01,193.21,193.17,2.91]
[1755454646899,3.01,193.21,193.18,2.91]
[1755454649500,3.01,193.21,193.19,2.91]
[1755454649799,3.01,193.21,193.18,2.94353288]
[1755454650195,3.01,193.21,193.18,0.03353288]
[1755454650398,3.01,193.21,193.19,2.91]
[1755454651001,3.01,193.21,193.18,2.94353288]
[1755454653507,3.01,193.21,193.19,2.91]
[1755454673526,3.01,193.21,193.2,2.86]
[1755454673727,11.11263147,193.21,193.2,2.86]
[1755454674028,11.11263147,193.21,193.19,2.86]
[1755454674228,3.01,193.21,193.19,2.86]
[1755454677632,3.01,193.21,193.18,0.03353288]
[1755454677836,3.01,193.21,193.2,2.86]
[1755454678026,11.11238124,193.21,193.2,2.86]
[1755454681435,8.10238124,193.21,193.19,2.86]
[1755454681627,7.48520379,193.2,193.19,2.86]
[1755454681937,3.03,193.19,193.18,0.03353288]
[1755454682135,11.13200687,193.19,193.18,0.03353288]
[1755454682527,11.13200687,193.19,193.12,2.86]
[1755454682728,3.03,193.14,193.1,2.86]
[1755454683027,1.67945532,193.16,193.1,2.86]
[1755454683334,3.03,193.13,193.1,2.86]
[1755454683935,3.06662034,193.13,193.1,2.86]
[1755454684937,3.03,193.12,193.1,2.86]
[1755454686133,3.03,193.11,193.1,2.86]
[1755454686533,3.03,193.12,193.1,2.86]
[1755454691843,3.03,193.11,193.1,2.86]
[1755454698953,3.03,193.11,193.1,4.53945532]
[1755454699248,2.99,193.12,193.11,2.87]
[1755454699453,0.03662034,193.13,193.11,2.87]
[1755454699650,2.99,193.12,193.11,2.87]
[1755454701956,2.99,193.12,193.1,2.87]
[1755454704457,4.66945532,193.12,193.04,2.87]
[1755454704752,2.99,193.11,193.05,2.87]
[1755454706349,2.99,193.11,193.06,1.67945532]
[1755454706554,2.99,193.11,193.07,2.87]
[1755454708055,3.02662034,193.13,193.1,1.67945532]
[1755454708353,3.02662034,193.13,193.12,4.54945532]
[1755454708555,2.99,193.13,193.12,4.54945532]
[1755454710150,2.99,193.18,193.13,2.87]
[1755454710459,2.99,193.25,193.18,2.87]
[1755454710654,2.99,193.23,193.19,1.67945532]
[1755454710848,2.99,193.21,193.11,2.87]
[1755454711055,2.99,193.19,193.11,4.54945532]
[1755454711246,2.99,193.17,193.11,2.87]
[1755454711451,2.99,193.17,193.11,4.54945532]
[1755454711651,2.99,193.17,193.11,1.67945532]
[1755454711851,1.67945532,193.16,193.12,0.03494882]
[1755454712051,2.99,193.15,193.12,0.03494882]
[1755454712954,2.99,193.15,193.12,2.90494882]
[1755454713457,2.99,193.15,193.12,0.03494882]
[1755454714759,2.99,193.15,193.12,2.90494882]
[1755454715854,2.99,193.15,193.12,0.03494882]
[1755454721870,2.99,193.15,193.12,2.90494882]
[1755454723863,2.99,193.15,193.13,2.87]
[1755454724269,1.67945532,193.19,193.14,2.87]
[1755454724466,8.15350273,193.18,193.14,2.87]
[1755454724661,11.14350273,193.17,193.14,2.87]
[1755454724966,11.14350273,193.16,193.14,2.90801401]
[1755454725166,2.99,193.16,193.14,2.90801401]
[1755454725566,2.99,193.15,193.14,2.90801401]
[1755454726070,2.99,193.17,193.14,2.90801401]
[1755454726266,11.14634241,193.16,193.14,2.90801401]
[1755454726571,2.99,193.16,193.14,2.90801401]